bitfinex-derivatives/quotes_SOLF0:USTF0_20250528
["timestamp","ask_amount","ask_price","bid_price","bid_amount"]
[1748399345845,33.1261,174.58,174.53,5.7266]
[1748399346154,33.1261,174.58,174.54,5.7262]
[1748399346349,31.1,174.58,174.48,6.64228869]
[1748399346749,0.03955351,174.55,174.54,5.7261]
[1748399346950,32.9729,174.62,174.52,31.1]
[1748399347155,5.7247,174.6,174.52,31.1]
[1748399347559,5.7247,174.6,174.52,33.0322]
[1748399347950,0.04033908,174.58,174.56,5.7258]
[1748399348756,0.04033908,174.58,174.55,5.726]
[1748399352959,0.04033908,174.58,174.54,6.67865261]
[1748399353153,0.04033908,174.58,174.54,0.03636392]
[1748399353355,0.04033908,174.58,174.55,114.7]
[1748399354960,0.04033908,174.58,174.57,5.7254]
[1748399360763,31.1,174.65,174.56,31.1]
[1748399361464,36.823,174.65,174.61,5.7241]
[1748399361661,5.76655603,174.65,174.61,5.76562316]
[1748399362259,0.04355603,174.65,174.62,5.7237]
[1748399362460,0.04355603,174.65,174.61,0.04152316]
[1748399362956,0.04355603,174.65,174.62,5.7237]
[1748399365473,0.04355603,174.65,174.61,5.76552316]
[1748399367566,0.04355603,174.65,174.62,5.7238]
[1748399367769,5.76635603,174.65,174.62,5.7238]
[1748399368467,0.04355603,174.65,174.62,5.7238]
[1748399370066,0.04355603,174.65,174.63,5.7235]
[1748399370569,0.04355603,174.65,174.62,5.7237]
[1748399374373,0.04355603,174.65,174.61,0.04152316]
[1748399374374,0.04355603,174.65,174.63,5.7235]
[1748399375465,0.04355603,174.65,174.62,5.7237]
[1748399376269,0.04355603,174.65,174.61,0.04152316]
[1748399376775,5.7237,174.63,174.61,0.04152316]
[1748399377076,0.04355603,174.65,174.61,0.04152316]
[1748399377473,5.76665603,174.65,174.61,0.04152316]
[1748399377869,5.76665603,174.65,174.61,5.76552316]
[1748399378372,5.7232,174.64,174.61,5.76552316]
[1748399379773,5.76655603,174.65,174.61,5.76552316]
[1748399379972,0.04355603,174.65,174.61,5.76552316]
[1748399380174,5.7234,174.64,174.61,0.04152316]
[1748399383972,5.76655603,174.65,174.61,5.76562316]
[1748399385672,5.7232,174.64,174.61,5.76562316]
[1748399386072,0.04355603,174.65,174.61,5.76562316]
[1748399386277,5.76655603,174.65,174.61,5.76562316]
[1748399386871,0.04355603,174.65,174.61,0.04152316]
[1748399387178,0.04355603,174.65,174.51,11.4548]
[1748399387179,37.24228869,174.64,174.51,30.6]
[1748399387376,2.0226,174.63,174.53,5.7265]
[1748399387572,6.64228869,174.61,174.53,5.7265]
[1748399387779,30.6,174.6,174.53,5.7265]
[1748399387984,30.6,174.6,174.51,30.6]
[1748399388286,0.03649266,174.58,174.55,0.03875142]
[1748399388475,5.7254,174.57,174.55,0.03875142]
[1748399389271,0.03649266,174.58,174.55,0.03875142]
[1748399389970,5.7257,174.57,174.55,0.03875142]
[1748399391982,5.7258,174.56,174.55,0.03875142]
[1748399401382,36.1858,174.56,174.55,0.03875142]
[1748399402391,30.46,174.56,174.47,32.3758]
[1748399402787,30.46,174.56,174.47,36.1885]
[1748399402991,6.64228869,174.55,174.47,30.46]
[1748399403292,10.66548869,174.55,174.47,30.46]
[1748399403491,10.66548869,174.55,174.49,0.03861995]
[1748399403492,0.03957191,174.53,174.49,0.03861995]
[1748399403989,5.7278,174.5,174.49,0.03861995]
[1748399406092,2.0379,174.52,174.49,0.03861995]
[1748399406293,0.03957191,174.53,174.49,0.03861995]
[1748399406593,0.03957191,174.53,174.5,5.7275]
[1748399407087,0.03957191,174.53,174.49,0.03861995]
[1748399408495,0.03957191,174.53,174.5,5.7276]
[1748399408692,0.03957191,174.53,174.49,0.03861995]
[1748399410094,5.7277,174.5,174.49,0.03861995]
[1748399411193,5.7275,174.51,174.49,0.03861995]
[1748399411396,32.3771,174.52,174.49,0.03861995]
[1748399411397,30.48,174.52,174.49,0.03861995]
[1748399411695,5.7277,174.5,174.49,0.03861995]
[1748399416510,5.7275,174.51,174.49,0.03861995]
[1748399417594,30.48,174.52,174.49,0.03861995]
[1748399418705,36.2072,174.52,174.49,0.03861995]
[1748399418906,30.48,174.52,174.49,0.03861995]
[1748399419202,0.03957191,174.53,174.5,5.7275]
[1748399419405,0.03957191,174.53,174.49,0.03861995]
[1748399419797,0.03957191,174.53,174.51,5.7272]
[1748399422306,0.03957191,174.53,174.5,5.7276]
[1748399422601,0.03957191,174.53,174.49,0.03861995]
[1748399423001,0.03957191,174.53,174.5,5.7275]
[1748399423206,5.7277,174.5,174.49,0.03861995]
[1748399424514,0.03957191,174.53,174.49,0.03861995]
[1748399425511,5.7277,174.5,174.49,0.03861995]
[1748399428719,0.03957191,174.53,174.49,0.03861995]
[1748399429213,5.7274,174.52,174.49,0.03861995]
[1748399429406,0.03957191,174.53,174.49,0.03861995]
[1748399429918,5.7277,174.5,174.49,0.03861995]
[1748399431108,0.03957191,174.53,174.49,0.03861995]
[1748399433212,5.7277,174.5,174.49,0.03861995]
[1748399433917,0.03957191,174.53,174.49,5.76661995]
[1748399434319,5.7277,174.5,174.49,0.03861995]
[1748399435921,0.03957191,174.53,174.49,0.03861995]
[1748399436616,5.76657191,174.53,174.5,5.7275]
[1748399437116,0.03957191,174.53,174.49,0.03861995]
[1748399437308,32.4107,174.63,174.51,37.16228869]
[1748399437517,5.7246,174.6,174.51,37.16228869]
[1748399437817,5.7246,174.6,174.51,151.36228869]
[1748399438331,0.04226931,174.57,174.54,0.0365618]
[1748399438518,0.04226931,174.57,174.55,5.7261]
[1748399438715,0.04226931,174.57,174.54,0.0365618]
[1748399439025,32.4738,174.69,174.57,6.64228869]
[1748399439228,30.52,174.69,174.58,3.9085]
[1748399439427,5.7223,174.67,174.58,3.9085]
[1748399439828,0.0420574,174.64,174.61,0.04283232]
[1748399440029,0.0420574,174.64,174.61,30.56283232]
[1748399440925,0.0420574,174.64,174.62,5.7237]
[1748399441522,0.0420574,174.64,174.61,36.28693232]
[1748399442328,0.0420574,174.64,174.62,5.7238]
[1748399443628,0.0420574,174.64,174.63,5.7235]
[1748399444520,32.5152,174.73,174.61,30.56283232]
[1748399444726,32.5152,174.73,174.61,30.52]
[1748399445019,32.5152,174.73,174.64,5.7229]
[1748399445420,5.7217,174.69,174.67,0.03731906]
[1748399445623,0.03727014,174.7,174.67,0.03731906]
[1748399446629,5.7218,174.68,174.67,0.03731906]
[1748399450331,5.7216,174.69,174.67,0.03731906]
[1748399450630,0.03727014,174.7,174.67,0.03731906]
[1748399450837,5.7218,174.68,174.67,0.03731906]
[1748399458747,5.7218,174.69,174.67,0.03731906]
[1748399459344,5.75857014,174.7,174.67,0.03731906]
[1748399459552,0.03727014,174.7,174.67,0.03731906]
[1748399460250,0.03727014,174.7,174.67,5.75941906]
[1748399461652,0.03727014,174.7,174.67,0.03731906]
[1748399462752,5.7217,174.69,174.67,0.03731906]
[1748399462953,0.03727014,174.7,174.67,0.03731906]
[1748399463250,5.7218,174.68,174.67,0.03731906]
[1748399463753,5.7216,174.69,174.67,0.03731906]
[1748399464146,0.03727014,174.7,174.67,0.03731906]
[1748399465053,0.03727014,174.7,174.68,5.7217]
[1748399465249,0.03727014,174.7,174.67,0.03731906]
[1748399465647,5.75867014,174.7,174.67,0.03731906]
[1748399467059,5.75867014,174.7,174.67,5.75941906]
[1748399467352,0.03727014,174.7,174.67,5.75941906]
[1748399468258,0.03727014,174.7,174.67,0.03731906]
[1748399469451,5.75867014,174.7,174.67,5.75931906]
[1748399469748,0.03727014,174.7,174.67,0.03731906]
[1748399470061,0.03727014,174.7,174.68,5.7216]
[1748399470962,0.03727014,174.7,174.67,0.03731906]
[1748399471961,0.03727014,174.7,174.69,5.7215]
[1748399472154,0.03727014,174.7,174.69,36.1815]
[1748399472357,30.46,174.77,174.69,30.46]
[1748399472555,5.7194,174.76,174.69,30.46]
[1748399472957,5.7194,174.76,174.72,5.7204]
[1748399473161,3.7641,174.79,174.69,30.46]
[1748399473361,0.03882672,174.76,174.72,0.03688602]
[1748399473563,5.7201,174.74,174.72,0.03688602]
[1748399473761,0.03882672,174.76,174.72,0.03688602]
[1748399474462,5.7202,174.73,174.72,0.03688602]
[1748399476268,5.7219,174.68,174.64,30.44]
[1748399476468,30.44,174.73,174.64,30.44]
[1748399476868,5.7214,174.7,174.67,5.7221]
[1748399477171,0.04046551,174.7,174.67,0.04063234]
[1748399477368,0.04046551,174.7,174.68,5.7215]
[1748399477973,0.04046551,174.7,174.69,5.7215]
[1748399478869,37.08228869,174.77,174.72,5.7205]
[1748399478870,30.44,174.77,174.72,5.7205]
[1748399479271,5.7193,174.76,174.68,30.44]
[1748399479468,30.44,174.77,174.68,30.44]
[1748399479660,10.40638869,174.79,174.68,30.44]
[1748399479865,0.04263249,174.75,174.73,5.72]
[1748399480064,0.04263249,174.75,174.72,0.04111539]
[1748399480564,0.04263249,174.75,174.72,5.76141539]
[1748399481072,5.76243249,174.75,174.72,5.76141539]
[1748399481273,0.04263249,174.75,174.72,30.48111539]
[1748399483865,0.04263249,174.75,174.74,5.7199]
[1748399486974,0.04263249,174.75,174.73,5.7201]
[1748399487977,0.04263249,174.75,174.74,5.7199]
[1748399489269,5.7185,174.79,174.75,5.7193]
[1748399489466,5.7185,174.79,174.76,30.44]
[1748399489972,5.7186,174.78,174.76,30.44]
[1748399490168,8.71178869,174.85,174.76,30.44]
[1748399490376,0.03696979,174.79,174.76,30.44]
[1748399490769,5.7186,174.78,174.76,30.44]
[1748399491172,5.7189,174.77,174.76,30.44]
[1748399493781,5.7187,174.78,174.76,30.44]
[1748399493973,0.03696979,174.79,174.76,30.44]
[1748399494379,5.7186,174.78,174.76,30.44]
[1748399494677,0.03696979,174.79,174.76,30.44]
[1748399494874,5.7186,174.78,174.76,30.44]
[1748399496482,5.7186,174.78,174.76,36.1592]
[1748399496785,5.75536979,174.79,174.76,36.1592]
[1748399497281,0.03696979,174.79,174.77,5.7188]
[1748399497481,0.03696979,174.79,174.76,30.44]
[1748399497976,0.03696979,174.79,174.78,5.7186]
[1748399499577,50.0,174.8,174.79,5.7182]
[1748399500176,50.0,174.8,174.78,5.7184]
[1748399500377,50.0,174.8,174.76,30.44]
[1748399500582,50.03957414,174.8,174.76,30.44]
[1748399500882,50.03957414,174.8,174.77,5.7186]
[1748399501079,50.03957414,174.8,174.76,30.44]
[1748399501575,50.03957414,174.8,174.78,5.7183]
[1748399502282,50.03957414,174.8,174.77,5.7188]
[1748399503382,50.03957414,174.8,174.76,30.44]
[1748399503881,50.03957414,174.8,174.79,5.7182]
[1748399504278,50.03957414,174.8,174.76,30.44]
[1748399504472,50.03957414,174.8,174.77,30.42]
[1748399504882,5.7188,174.78,174.75,0.0383391]
[1748399505081,5.7188,174.78,174.75,30.4583391]
[1748399506380,5.7191,174.77,174.75,30.4583391]
[1748399506680,50.03957414,174.8,174.75,30.4583391]
[1748399506881,5.7192,174.76,174.75,0.0383391]
[1748399510088,5.719,174.77,174.75,0.0383391]
[1748399510680,5.7185,174.79,174.75,5.7576391]
[1748399510987,56.68186283,174.8,174.75,5.7576391]
[1748399511186,56.68186283,174.8,174.75,0.0383391]
[1748399511386,5.7186,174.78,174.76,5.719]
[1748399512090,5.7186,174.78,174.75,5.7578391]
[1748399513981,5.7183,174.79,174.76,5.7192]
[1748399514380,5.7183,174.79,174.76,36.1592]
[1748399514782,5.7186,174.78,174.76,30.44]
[1748399514986,50.03957414,174.8,174.76,30.44]
[1748399515689,5.7184,174.79,174.76,36.1592]
[1748399516088,50.03957414,174.8,174.76,30.44]
[1748399516892,55.75767414,174.8,174.77,5.7187]
[1748399517093,50.03957414,174.8,174.77,5.7187]
[1748399517284,50.03957414,174.8,174.76,30.44]
[1748399517485,50.03957414,174.8,174.78,5.7185]
[1748399519992,50.03957414,174.8,174.79,5.7182]
[1748399521795,50.03957414,174.8,174.77,9.7486]
[1748399521983,50.03957414,174.8,174.78,144.16]
[1748399522686,50.03957414,174.8,174.79,5.7182]
[1748399524786,50.03957414,174.8,174.78,149.8784]
[1748399525790,50.03957414,174.8,174.75,0.0383391]
[1748399526094,50.03957414,174.8,174.76,30.42]
[1748399526689,50.03957414,174.8,174.77,5.7187]
[1748399527084,50.03957414,174.8,174.76,30.42]
[1748399527294,50.03957414,174.8,174.78,5.7186]
[1748399527495,50.03957414,174.8,174.76,30.42]
[1748399527691,50.03957414,174.8,174.79,5.7182]
[1748399529296,50.03957414,174.8,174.76,30.42]
[1748399529690,50.03957414,174.8,174.78,5.7183]
[1748399531688,50.03957414,174.8,174.79,5.7182]
[1748399535998,1.9965,174.88,174.78,6.64228869]
[1748399536502,5.7157,174.87,174.78,6.64228869]
[1748399536691,1.9965,174.88,174.79,3.9403]
[1748399536892,30.42,174.93,174.8,30.42]
[1748399537091,30.42,174.93,174.85,0.03893291]
[1748399537092,0.03877466,174.88,174.85,0.03893291]
[1748399537289,0.03877466,174.88,174.85,30.45893291]
[1748399537500,0.03877466,174.88,174.86,5.7158]
[1748399537699,0.03877466,174.88,174.85,30.45893291]
[1748399538296,5.7156,174.87,174.85,30.45893291]
[1748399541004,0.03877466,174.88,174.85,30.45893291]
[1748399541404,5.7156,174.87,174.85,30.45893291]
[1748399542200,0.03877466,174.88,174.85,0.03893291]
[1748399542201,5.716,174.86,174.85,0.03893291]
[1748399542502,0.03877466,174.88,174.81,30.4]
[1748399542800,5.75437466,174.88,174.81,30.4]
[1748399542999,0.03877466,174.88,174.81,30.4]
[1748399543393,5.7159,174.87,174.84,5.7165]
[1748399544004,5.75417466,174.88,174.85,5.7162]
[1748399544199,0.03877466,174.88,174.85,5.7162]
[1748399545005,0.03877466,174.88,174.84,5.7166]
[1748399545205,0.03877466,174.88,174.83,0.04299703]
[1748399545395,5.7166,174.84,174.83,0.04299703]
[1748399550306,5.7185,174.79,174.77,30.38]
[1748399551802,5.7185,174.79,174.77,36.0989]
[1748399553206,0.03703387,174.8,174.77,30.38]
[1748399553805,5.7186,174.78,174.77,30.38]
[1748399555311,0.03703387,174.8,174.76,0.04236253]
[1748399555312,5.7189,174.77,174.76,0.04236253]
[1748399566920,5.7189,174.77,174.76,6.253e-05]
[1748399567125,12.36118869,174.77,174.76,6.253e-05]
[1748399567720,5.7189,174.77,174.76,6.253e-05]
[1748399579128,5.7211,174.71,174.68,34.2656]
[1748399579330,6.64228869,174.77,174.68,34.2656]
[1748399580127,0.0411812,174.74,174.71,0.04096869]
[1748399580829,5.7206,174.72,174.71,0.04096869]
[1748399587133,0.0411812,174.74,174.71,0.04096869]
[1748399588132,0.0411812,174.74,174.73,5.7202]
[1748399588630,30.4,174.79,174.71,1.91566869]
[1748399588830,5.7189,174.78,174.74,5.7197]
[1748399589142,30.4,174.79,174.74,5.7197]
[1748399589740,5.7191,174.77,174.75,0.04401888]
[1748399591639,5.76203532,174.78,174.75,5.76341888]
[1748399592039,30.36,174.87,174.75,0.04401888]
[1748399592344,37.00228869,174.87,174.78,5.7186]
[1748399592740,5.7175,174.82,174.76,2.023]
[1748399593137,0.04127873,174.81,174.79,5.7181]
[1748399593540,0.04127873,174.81,174.78,30.36]
[1748399593739,0.04127873,174.81,174.79,5.7183]
[1748399593945,0.04127873,174.81,174.78,30.36]
[1748399594444,0.04127873,174.81,174.79,5.7183]
[1748399596445,0.04127873,174.81,174.78,38.0831]
[1748399596649,0.04127873,174.81,174.78,30.36]
[1748399597046,5.7179,174.8,174.78,30.36]
[1748399598149,5.75897873,174.81,174.78,30.36]
[1748399598339,5.75897873,174.81,174.78,36.0785]
[1748399598740,0.04127873,174.81,174.78,30.36]
[1748399599555,5.75897873,174.81,174.78,30.36]
[1748399600056,0.04127873,174.81,174.78,30.36]
[1748399600260,5.7179,174.8,174.78,30.36]
[1748399601261,5.75897873,174.81,174.78,30.36]
[1748399601762,0.04127873,174.81,174.78,30.36]
[1748399602163,30.36,174.87,174.78,30.36]
[1748399602959,5.717,174.83,174.8,5.7177]
[1748399603160,5.717,174.83,174.81,0.03708227]
[1748399603357,0.03869236,174.84,174.81,0.03708227]
[1748399603663,0.03869236,174.84,174.82,5.7173]
[1748399607767,0.03869236,174.84,174.81,0.03708227]
[1748399608168,0.03869236,174.84,174.82,5.7171]
[1748399608564,30.36,174.91,174.82,30.34]
[1748399608767,30.36,174.91,174.82,32.3103]
[1748399609467,5.716,174.87,174.83,5.7169]
[1748399609663,0.04156625,174.87,174.83,5.75579621]
[1748399610059,5.7162,174.86,174.83,5.75579621]
[1748399610266,0.04156625,174.87,174.83,0.03889621]
[1748399610766,5.7164,174.85,174.83,0.03889621]
[1748399610963,0.04156625,174.87,174.83,0.03889621]
[1748399611467,5.7166,174.84,174.83,0.03889621]
[1748399617164,0.04156625,174.87,174.83,0.03889621]
[1748399617673,5.7162,174.86,174.83,5.75559621]
[1748399620675,5.7164,174.85,174.83,0.03889621]
[1748399621271,5.7166,174.84,174.83,0.03889621]
[1748399621471,6.64228869,174.86,174.76,1.9386]
[1748399621677,5.7179,174.81,174.77,5.7187]
[1748399622177,5.7179,174.81,174.76,30.3]
[1748399622776,0.03715532,174.8,174.78,5.7184]
[1748399624076,0.03715532,174.8,174.77,0.03790926]
[1748399624772,0.03715532,174.8,174.79,5.7183]
[1748399624976,30.3,174.87,174.77,0.03790926]
[1748399625369,5.7166,174.84,174.81,5.7174]
[1748399625976,5.75620252,174.84,174.81,5.75593224]
[1748399627575,0.03960252,174.84,174.82,5.7172]
[1748399628471,0.03960252,174.84,174.81,0.03853224]
[1748399628876,5.7173,174.82,174.81,0.03853224]
[1748399631071,5.7171,174.83,174.81,0.03853224]
[1748399632083,0.03960252,174.84,174.81,0.03853224]
[1748399632484,0.03960252,174.84,174.83,5.717]
[1748399633276,0.03960252,174.84,174.82,5.7172]
[1748399634281,0.03960252,174.84,174.81,5.75603224]
[1748399634679,5.75630252,174.84,174.81,5.75603224]
[1748399636287,5.717,174.83,174.81,0.03853224]
[1748399636786,5.7173,174.82,174.81,0.03853224]
[1748399637887,5.7171,174.83,174.81,0.03853224]
[1748399639491,5.7173,174.82,174.81,0.03853224]
[1748399641578,5.7171,174.83,174.81,0.03853224]
[1748399641887,0.03960252,174.84,174.81,0.03853224]
[1748399642185,5.7173,174.82,174.81,0.03853224]
[1748399648785,5.7172,174.83,174.81,0.03853224]
[1748399649295,5.7173,174.82,174.81,0.03853224]
[1748399649489,0.03960252,174.84,174.81,0.03853224]
[1748399650798,0.03960252,174.84,174.82,5.7171]
[1748399653198,0.03960252,174.84,174.83,5.717]
[1748399661601,0.03960252,174.84,174.82,35.9572]
[1748399661800,0.03960252,174.84,174.82,30.24]
[1748399662308,0.03960252,174.84,174.83,5.717]
[1748399665198,5.7173,174.82,174.81,0.03853224]
[1748399673512,5.7189,174.77,174.76,30.24]
[1748399676708,5.76144852,174.78,174.76,30.24]
[1748399677104,0.04274852,174.78,174.76,30.24]
[1748399678020,0.04274852,174.78,174.77,5.7189]
[1748399678512,38.79648869,174.83,174.76,30.24]
[1748399678513,30.18,174.83,174.76,30.24]
[1748399678718,36.82228869,174.87,174.76,30.24]
[1748399678918,5.7177,174.81,174.76,30.24]
[1748399679521,0.03802127,174.8,174.77,0.04227666]
[1748399680120,0.03802127,174.8,174.78,5.7183]
[1748399681314,5.75612127,174.8,174.77,5.76107666]
[1748399681516,0.03802127,174.8,174.77,0.04227666]
[1748399682016,5.7185,174.79,174.77,0.04227666]
[1748399682422,0.03802127,174.8,174.77,0.04227666]
[1748399682624,5.7186,174.78,174.77,0.04227666]
[1748399683222,0.03802127,174.8,174.72,35.9004]
[1748399683721,5.7196,174.76,174.72,35.9004]
[1748399683908,5.7196,174.76,174.72,30.18]
[1748399684110,0.03848279,174.76,174.72,36.86290983]
[1748399684308,5.7175,174.82,174.72,36.86290983]
[1748399684521,36.82228869,174.87,174.72,36.82228869]
[1748399684921,5.7177,174.81,174.72,36.82228869]
[1748399685118,5.7177,174.81,174.78,5.7184]
[1748399685322,5.7546327,174.81,174.78,0.04270304]
[1748399685825,0.0369327,174.81,174.79,5.7182]
[1748399686121,0.0369327,174.81,174.78,0.04270304]
[1748399686311,0.0369327,174.81,174.78,5.76110304]
[1748399686312,5.7547327,174.81,174.78,5.76110304]
[1748399686515,0.0369327,174.81,174.78,5.76110304]
[1748399687517,5.7547327,174.81,174.78,5.76110304]
[1748399688122,5.7547327,174.81,174.79,5.7182]
[1748399688327,5.7547327,174.81,174.78,0.04270304]
[1748399688719,5.718,174.8,174.78,0.04270304]
[1748399689520,5.7183,174.79,174.78,0.04270304]
[1748399695325,5.718,174.8,174.78,0.04270304]
[1748399695523,0.0369327,174.81,174.78,0.04270304]
[1748399696030,5.7182,174.8,174.78,0.04270304]
[1748399697034,5.7183,174.79,174.78,0.04270304]
[1748399702334,5.7181,174.8,174.78,0.04270304]
[1748399703534,5.7179,174.8,174.78,0.04270304]
[1748399703936,0.0369327,174.81,174.78,0.04270304]
[1748399704342,5.7183,174.79,174.78,0.04270304]
[1748399709438,5.7183,174.79,174.78,3.04e-06]
[1748399714142,5.7202,174.73,174.72,30.18]
[1748399714537,36.76228869,174.79,174.7,5.7209]
[1748399714838,5.7211,174.71,174.68,34.1756]
[1748399715241,5.76008465,174.71,174.68,39.93750947]
[1748399715443,5.76008465,174.71,174.68,34.21590947]
[1748399715836,5.7213,174.7,174.68,34.21590947]
[1748399716041,0.03898465,174.71,174.68,34.21590947]
[1748399716540,5.75998465,174.71,174.68,34.21590947]
[1748399716947,0.03898465,174.71,174.68,30.16030947]
[1748399717846,5.7215,174.7,174.68,30.16030947]
[1748399718043,0.03898465,174.71,174.68,30.16030947]
[1748399718242,0.03898465,174.71,174.68,0.04030947]
[1748399718545,5.76008465,174.71,174.68,5.76210947]
[1748399719447,5.76008465,174.71,174.68,0.04030947]
[1748399719448,5.7213,174.7,174.68,0.04030947]
[1748399720448,5.75998465,174.71,174.68,5.76220947]
[1748399720648,5.75998465,174.71,174.68,0.04030947]
[1748399721344,0.03898465,174.71,174.68,0.04030947]
[1748399722348,0.03898465,174.71,174.69,5.7214]
[1748399725054,5.75988465,174.71,174.68,5.76210947]
[1748399734275,0.03898465,174.71,174.68,0.04030947]
[1748399735272,0.03898465,174.71,174.69,5.7215]
[1748399736765,6.64228869,174.78,174.68,0.04030947]
[1748399736766,30.08,174.79,174.68,30.12030947]
[1748399736965,30.08,174.79,174.69,6.64228869]
[1748399737171,1.9317,174.82,174.77,5.7187]
[1748399737375,30.08,174.83,174.74,30.08]
[1748399737777,0.0438965,174.8,174.77,0.04222721]
[1748399740571,5.7185,174.79,174.77,0.04222721]
[1748399741273,5.7619965,174.8,174.77,0.04222721]
[1748399741777,5.7619965,174.8,174.77,5.76112721]
[1748399741974,5.7619965,174.8,174.77,0.04222721]
[1748399742674,0.0438965,174.8,174.77,0.04222721]
[1748399743367,0.0438965,174.8,174.78,5.7185]
[1748399743875,0.0438965,174.8,174.77,0.04222721]
[1748399744376,5.7619965,174.8,174.77,0.04222721]
[1748399744579,5.7619965,174.8,174.77,5.76092721]
[1748399746578,5.7619965,174.8,174.77,0.04222721]
[1748399747481,5.7183,174.79,174.77,0.04222721]
[1748399748379,5.7618965,174.8,174.77,5.76112721]
[1748399749687,5.7183,174.79,174.77,0.04222721]
[1748399751281,5.7619965,174.8,174.77,5.76112721]
[1748399752077,0.0438965,174.8,174.78,5.7185]
[1748399753581,0.0438965,174.8,174.79,5.7183]
[1748399753980,0.0438965,174.8,174.77,0.04222721]
[1748399755078,5.7619965,174.8,174.77,5.76092721]
[1748399756478,5.7619965,174.8,174.78,5.7186]
[1748399756877,0.0438965,174.8,174.77,0.04222721]
[1748399757983,0.0438965,174.8,174.78,5.7183]
[1748399758384,5.7618965,174.8,174.77,0.04222721]
[1748399758688,0.0438965,174.8,174.77,0.04222721]
[1748399759188,0.0438965,174.8,174.78,5.7186]
[1748399760282,0.0438965,174.8,174.77,0.04222721]
[1748399760488,5.7186,174.78,174.77,0.04222721]
[1748399767588,5.7184,174.79,174.77,0.04222721]
[1748399767894,0.0438965,174.8,174.77,0.04222721]
[1748399768486,5.7618965,174.8,174.77,0.04222721]
[1748399768693,0.0438965,174.8,174.77,0.04222721]
[1748399768990,0.0438965,174.8,174.78,5.7184]
[1748399770787,5.7618965,174.8,174.77,5.76102721]
[1748399772489,5.7618965,174.8,174.78,5.7186]
[1748399772490,0.0438965,174.8,174.78,5.7186]
[1748399773898,0.0438965,174.8,174.79,5.7183]
[1748399774193,0.0438965,174.8,174.77,0.04222721]
[1748399774694,5.7186,174.78,174.77,0.04222721]
[1748399779395,5.7183,174.79,174.77,0.04222721]
[1748399779896,5.7186,174.78,174.77,0.04222721]
[1748399786891,5.7619965,174.8,174.77,5.76092721]
[1748399787089,0.0438965,174.8,174.77,0.04222721]
[1748399788191,0.0438965,174.8,174.78,5.7184]
[1748399788501,0.0438965,174.8,174.77,0.04222721]
[1748399789594,0.0438965,174.8,174.79,5.7183]
[1748399790504,31.9564,174.87,174.83,5.7169]
[1748399790696,2.0396,174.92,174.8,30.0]
[1748399790697,30.0,174.91,174.8,30.0]
[1748399790893,30.0,174.91,174.85,5.7161]
[1748399791302,5.7152,174.89,174.85,5.7161]
[1748399791516,0.03943249,174.9,174.86,0.03841832]
[1748399791804,5.75413249,174.9,174.86,0.03841832]
[1748399792102,5.75413249,174.9,174.86,5.75411832]
[1748399793099,5.75413249,174.9,174.86,0.03841832]
[1748399793300,5.7151,174.89,174.86,0.03841832]
[1748399793499,0.03943249,174.9,174.86,0.03841832]
[1748399794005,0.03943249,174.9,174.86,5.75431832]
[1748399794202,0.03943249,174.9,174.86,0.03841832]
[1748399796804,1.9907,174.98,174.88,6.64228869]
[1748399797001,1.9907,174.98,174.89,29.92]
[1748399797702,5.7125,174.97,174.93,5.7135]
[1748399798007,5.75341108,174.97,174.93,5.75248912]
[1748399798309,0.04091108,174.97,174.93,0.03898912]
[1748399798705,0.04091108,174.97,174.93,29.95898912]
[1748399798914,5.75341108,174.97,174.93,35.67248912]
[1748399799712,0.04091108,174.97,174.94,5.7133]
[1748399800008,0.04091108,174.97,174.93,29.95898912]
[1748399800214,0.04091108,174.97,174.94,5.7133]
[1748399800404,0.04091108,174.97,174.93,29.95898912]
[1748399802310,0.04091108,174.97,174.95,5.7128]
[1748399802610,0.04091108,174.97,174.93,29.95898912]
[1748399803004,0.04091108,174.97,174.95,5.7129]
[1748399803412,0.04091108,174.97,174.95,5.7128]
[1748399803806,0.04091108,174.97,174.93,29.95898912]
[1748399804006,0.04091108,174.97,174.95,5.7128]
[1748399804409,0.04091108,174.97,174.93,29.95898912]
[1748399804613,0.04091108,174.97,174.95,5.7128]
[1748399804814,0.04091108,174.97,174.93,36.60127781]
[1748399805206,29.9,175.07,174.93,36.60127781]
[1748399805403,5.7105,175.03,174.93,36.56228869]